bitfinex/quotes_BTCUSD_20241002
["timestamp","ask_amount","ask_price","bid_price","bid_amount"]
[1727913061077,0.37409952,60787.0,60786.0,0.273817]
[1727913061300,0.27735167,60787.0,60786.0,0.32020586]
[1727913061563,0.25288977,60787.0,60786.0,0.32020586]
[1727913062093,0.24388977,60787.0,60786.0,0.32020586]
[1727913062343,0.22274783,60787.0,60786.0,0.32020586]
[1727913062831,0.32274783,60787.0,60786.0,0.32020586]
[1727913063064,0.37169067,60787.0,60786.0,0.32020586]
[1727913063531,0.37169218,60787.0,60786.0,0.32020586]
[1727913063771,0.32074783,60787.0,60786.0,0.32020586]
[1727913064244,0.29495063,60787.0,60786.0,0.32020586]
[1727913064472,0.34389472,60787.0,60786.0,0.32020586]
[1727913064708,0.29495063,60787.0,60786.0,0.32020586]
[1727913065203,0.29495063,60787.0,60786.0,0.083817]
[1727913065204,0.34286252,60787.0,60786.0,0.083817]
[1727913066626,0.34286252,60787.0,60786.0,0.279217]
[1727913067561,0.34786252,60787.0,60786.0,0.279217]
[1727913067794,0.42248495,60787.0,60786.0,0.279217]
[1727913068261,0.34287677,60787.0,60786.0,0.279217]
[1727913068718,0.34387677,60787.0,60786.0,0.30773281]
[1727913069928,0.34487677,60787.0,60786.0,0.30773281]
[1727913070171,0.49182832,60787.0,60786.0,0.30773281]
[1727913070475,0.49205894,60787.0,60786.0,0.30773281]
[1727913070712,0.34487677,60787.0,60786.0,0.30773281]
[1727913070957,0.34387677,60787.0,60786.0,0.30773281]
[1727913071695,0.36867389,60787.0,60786.0,0.30773281]
[1727913072165,0.36967389,60787.0,60786.0,0.30773281]
[1727913073838,0.36967389,60787.0,60786.0,0.279217]
[1727913074168,0.49105894,60787.0,60786.0,0.083817]
[1727913074171,0.34387677,60787.0,60786.0,0.083817]
[1727913074903,0.34287677,60787.0,60786.0,0.083817]
[1727913075154,0.34487677,60787.0,60786.0,0.083817]
[1727913075423,0.51045672,60787.0,60786.0,0.000817]
[1727913075643,0.34287677,60787.0,60786.0,0.000817]
[1727913077053,0.34487677,60787.0,60786.0,0.000817]
[1727913077291,0.37067607,60787.0,60786.0,0.000817]
[1727913077512,0.37067607,60787.0,60786.0,0.080917]
[1727913077745,0.37667607,60787.0,60786.0,0.080917]
[1727913078030,0.37167607,60787.0,60786.0,0.080917]
[1727913078255,0.37467607,60787.0,60786.0,0.080917]
[1727913078487,0.36867607,60787.0,60786.0,0.080917]
[1727913078936,0.51800691,60787.0,60786.0,0.080917]
[1727913079162,0.37067607,60787.0,60786.0,0.080917]
[1727913080123,0.37167607,60787.0,60786.0,0.080917]
[1727913080365,0.37167607,60787.0,60786.0,0.000817]
[1727913080639,0.37467607,60787.0,60786.0,0.000817]
[1727913080851,0.36967607,60787.0,60786.0,0.000817]
[1727913081080,0.34387677,60787.0,60786.0,0.000817]
[1727913081321,0.34287677,60787.0,60786.0,0.000817]
[1727913081546,0.34887677,60787.0,60786.0,0.000817]
[1727913081784,0.35187677,60787.0,60786.0,0.000817]
[1727913082022,0.51767336,60787.0,60786.0,0.000817]
[1727913082246,0.35187677,60787.0,60786.0,0.000817]
[1727913083453,0.37767748,60787.0,60786.0,0.000817]
[1727913084135,0.51767973,60787.0,60786.0,0.000817]
[1727913084362,0.35187677,60787.0,60786.0,0.04482686]
[1727913086213,0.35187677,60787.0,60786.0,0.000817]
[1727913086439,0.51767973,60787.0,60786.0,0.000817]
[1727913086660,0.35187677,60787.0,60786.0,0.000817]
[1727913087426,0.37767552,60787.0,60786.0,0.000817]
[1727913087880,0.54346137,60787.0,60786.0,0.000817]
[1727913088155,0.5434606,60787.0,60786.0,0.0202038]
[1727913088403,0.37767552,60787.0,60786.0,0.0202038]
[1727913088636,0.35187677,60787.0,60786.0,0.0202038]
[1727913089631,0.35187677,60787.0,60786.0,0.000817]
[1727913090095,0.51767007,60787.0,60786.0,0.000817]
[1727913091270,0.35187677,60787.0,60786.0,0.000817]
[1727913091505,0.54347531,60787.0,60786.0,0.000817]
[1727913092440,0.37767541,60787.0,60786.0,0.000817]
[1727913092668,0.54347531,60787.0,60786.0,0.000817]
[1727913093435,0.54348186,60787.0,60786.0,0.000817]
[1727913093663,0.37767541,60787.0,60786.0,0.000817]
[1727913094156,0.35187677,60787.0,60786.0,0.000817]
[1727913094651,0.51768322,60787.0,60786.0,0.000817]
[1727913094898,0.35187677,60787.0,60786.0,0.000817]
[1727913095125,0.35187677,60787.0,60786.0,0.04482686]
[1727913095373,0.35187677,60787.0,60786.0,0.077917]
[1727913095621,0.25187677,60787.0,60786.0,0.077917]
[1727913097317,0.35187677,60787.0,60786.0,0.077917]
[1727913097549,0.37767421,60787.0,60786.0,0.077917]
[1727913098793,0.35187677,60787.0,60786.0,0.077917]
[1727913100016,0.35177677,60787.0,60786.0,0.1050138]
[1727913100265,0.35107677,60787.0,60786.0,0.1050138]
[1727913100750,0.35077677,60787.0,60786.0,0.1050138]
[1727913101028,0.35027677,60787.0,60786.0,0.1050138]
[1727913101516,0.37577415,60787.0,60786.0,0.1050138]
[1727913101790,0.37547415,60787.0,60786.0,0.1050138]
[1727913102029,0.09334896,60787.0,60786.0,0.1050138]
[1727913102289,0.04522282,60787.0,60786.0,0.1050138]
[1727913102543,0.04492282,60787.0,60786.0,0.1050138]
[1727913102800,0.04403,60787.0,60786.0,0.1050138]
[1727913103055,0.202538,60787.0,60786.0,0.1050138]
[1727913103324,0.203238,60787.0,60786.0,0.1050138]
[1727913103589,0.202838,60787.0,60786.0,0.1050138]
[1727913103840,0.03803,60787.0,60786.0,0.1050138]
[1727913104110,0.202438,60787.0,60786.0,0.1050138]
[1727913104337,0.01203262,60787.0,60786.0,0.1050138]
[1727913104597,0.01193262,60787.0,60786.0,0.1050138]
[1727913104810,0.01183262,60787.0,60786.0,0.1050138]
[1727913105302,0.01183262,60787.0,60786.0,0.6728454]
[1727913105303,0.11010807,60787.0,60786.0,0.6728454]
[1727913105552,0.06097056,60787.0,60786.0,0.7058354]
[1727913105805,0.05013794,60787.0,60786.0,0.7058354]
[1727913106053,0.04913794,60788.0,60787.0,0.220498]
[1727913106293,0.04913851,60788.0,60787.0,0.43312204]
[1727913106551,0.06170745,60788.0,60787.0,0.43212204]
[1727913106785,0.04913851,60788.0,60787.0,0.43212204]
[1727913106983,0.06170745,60788.0,60787.0,0.43012204]
[1727913107222,0.01256894,60788.0,60787.0,0.43012204]
[1727913107483,0.03936223,60788.0,60787.0,0.43012204]
[1727913107950,0.08850074,60788.0,60787.0,0.43012204]
[1727913108190,0.08848428,60788.0,60787.0,0.43012204]
[1727913108512,0.03936223,60788.0,60787.0,0.43012204]
[1727913108613,0.01356894,60788.0,60787.0,0.43012204]
[1727913108873,0.01456894,60788.0,60787.0,0.43112204]
[1727913109101,0.002,60788.0,60787.0,0.43112204]
[1727913110568,0.002,60788.0,60787.0,0.62462204]
[1727913111599,0.02779165,60788.0,60787.0,0.62462204]
[1727913112405,0.02942565,60788.0,60787.0,0.62462204]
[1727913114153,0.02942565,60788.0,60787.0,0.62962204]
[1727913114399,0.003634,60788.0,60787.0,0.62962204]
[1727913114885,0.003634,60788.0,60787.0,0.63162204]
[1727913116621,0.001634,60800.0,60799.0,0.6387966]
[1727913116856,0.001634,60800.0,60799.0,0.73557186]
[1727913117096,0.01431387,60800.0,60799.0,0.73557186]
[1727913117359,0.001634,60800.0,60799.0,0.73557186]
[1727913117871,0.001634,60800.0,60799.0,0.76856186]
[1727913117872,0.002634,60800.0,60799.0,0.76856186]
[1727913119145,0.002634,60800.0,60799.0,0.78256186]
[1727913119627,0.001634,60800.0,60799.0,0.78256186]
[1727913119905,0.001634,60800.0,60799.0,0.79556186]
[1727913121179,0.02741983,60800.0,60799.0,0.79556186]
[1727913121410,0.02741983,60800.0,60799.0,0.60814126]
[1727913121672,0.02741983,60800.0,60799.0,0.22657526]
[1727913121935,0.02741983,60800.0,60799.0,0.294276]
[1727913122183,0.0401284,60800.0,60799.0,0.1298]
[1727913122428,0.04013053,60800.0,60799.0,0.1298]
[1727913122965,0.20460353,60800.0,60799.0,0.027]
[1727913123211,0.20460353,60800.0,60799.0,0.041319]
[1727913124204,0.1788177,60800.0,60799.0,0.028319]
[1727913124445,0.1798177,60800.0,60799.0,0.021319]
[1727913124691,0.1808177,60800.0,60799.0,0.030319]
[1727913126386,0.1808177,60800.0,60799.0,0.053319]
[1727913126387,0.0163447,60800.0,60799.0,0.053319]
[1727913126625,0.1808177,60800.0,60799.0,0.030319]
[1727913127164,0.1808177,60800.0,60799.0,0.016]
[1727913127427,0.20660953,60800.0,60799.0,0.016]
[1727913131264,0.25561523,60800.0,60799.0,0.016]
[1727913131501,0.20660953,60800.0,60799.0,0.016]
[1727913131989,0.25561523,60800.0,60799.0,0.016]
[1727913133994,0.25561384,60800.0,60799.0,0.016]
[1727913134224,0.20660953,60800.0,60799.0,0.016]
[1727913134477,0.1808177,60800.0,60799.0,0.016]
[1727913134975,0.22982768,60800.0,60799.0,0.016]
[1727913135433,0.1808177,60800.0,60799.0,0.016]
[1727913135665,0.22983352,60800.0,60799.0,0.016]
[1727913136150,0.1808177,60800.0,60799.0,0.016]
[1727913137803,0.25432417,60800.0,60799.0,0.016]
[1727913138033,0.1808177,60800.0,60799.0,0.016]
[1727913138265,0.25432417,60800.0,60799.0,0.016]
[1727913138793,0.0163447,60800.0,60799.0,0.0946]
[1727913139026,0.0163447,60800.0,60799.0,0.10768794]
[1727913140447,0.0163447,60800.0,60799.0,0.27216394]
[1727913140930,0.02942284,60800.0,60799.0,0.27216394]
[1727913141423,0.04207593,60800.0,60799.0,0.10768794]
[1727913141937,0.20654893,60800.0,60799.0,0.10768794]
[1727913143395,0.25561383,60800.0,60799.0,0.10768794]
[1727913144135,0.25562219,60800.0,60799.0,0.10768794]
[1727913144398,0.25435745,60800.0,60799.0,0.10768794]
[1727913144637,0.22983901,60800.0,60799.0,0.10768794]
[1727913145344,0.25435745,60800.0,60799.0,0.10768794]
[1727913145844,0.22984691,60800.0,60799.0,0.10768794]
[1727913146081,0.18076009,60800.0,60799.0,0.10768794]
[1727913146321,0.22984691,60800.0,60799.0,0.10768794]
[1727913146650,0.25435745,60800.0,60799.0,0.10768794]
[1727913146903,0.2788899,60800.0,60799.0,0.02908794]
[1727913147158,0.22874803,60800.0,60799.0,0.016]
[1727913147641,0.2545388,60800.0,60799.0,0.016]
[1727913148378,0.20655086,60800.0,60799.0,0.016]
[1727913148611,0.18076009,60800.0,60799.0,0.016]
[1727913149599,0.27900912,60800.0,60799.0,0.016]
[1727913149832,0.18076009,60800.0,60799.0,0.10875756]
[1727913150090,0.08997557,60800.0,60799.0,0.19185756]
[1727913150598,0.25444857,60800.0,60799.0,0.19185756]
[1727913151813,0.28023781,60800.0,60799.0,0.19185756]
[1727913152531,0.28026656,60800.0,60799.0,0.19185756]
[1727913152824,0.11579363,60800.0,60799.0,0.57923356]
[1727913153086,0.04207633,60800.0,60799.0,0.524466]
[1727913153335,0.04207633,60800.0,60799.0,0.15509]
[1727913153336,0.02942324,60800.0,60799.0,0.15509]
[1727913153570,0.02942324,60800.0,60799.0,0.4173169]
[1727913153802,0.03980659,60800.0,60799.0,0.4103169]
[1727913154285,0.01401735,60800.0,60799.0,0.4103169]
[1727913154518,0.01301735,60800.0,60799.0,0.2368409]
[1727913154752,0.01301735,60800.0,60799.0,0.4013169]
[1727913155225,0.01401735,60800.0,60799.0,0.4073169]
[1727913155469,0.01301735,60800.0,60799.0,0.4013169]
[1727913155717,0.01401735,60800.0,60799.0,0.4153169]
[1727913155960,0.01501735,60800.0,60799.0,0.4293169]
[1727913156195,0.01401735,60800.0,60799.0,0.4153169]
[1727913156699,0.01316623,60802.0,60801.0,0.03299]
[1727913156932,0.01316623,60802.0,60801.0,0.16521249]
[1727913157165,0.2381803,60804.0,60801.0,0.16521249]
[1727913157166,0.238176,60804.0,60801.0,0.16521249]
[1727913157408,0.02578733,60802.0,60801.0,0.32968249]
[1727913158828,0.02742133,60802.0,60801.0,0.32968249]
[1727913159055,0.02842133,60802.0,60801.0,0.34268249]
[1727913160485,0.02942133,60802.0,60801.0,0.62888249]
[1727913160725,0.02942133,60802.0,60801.0,0.65183309]
[1727913160969,0.02942133,60802.0,60801.0,0.81630309]
[1727913163680,0.02942133,60802.0,60801.0,0.62888249]
[1727913164144,0.003634,60802.0,60801.0,0.62888249]
[1727913164376,0.01646585,60802.0,60801.0,0.62888249]
[1727913164612,0.003634,60802.0,60801.0,0.62888249]
[1727913165121,0.01647117,60802.0,60801.0,0.62888249]
[1727913165357,0.003634,60802.0,60801.0,0.62888249]
[1727913167573,0.02942039,60802.0,60801.0,0.62888249]
[1727913167803,0.04225662,60802.0,60801.0,0.62888249]
[1727913168578,0.01647023,60802.0,60801.0,0.62888249]
[1727913171500,0.04225691,60802.0,60801.0,0.62969949]
[1727913171741,0.04225691,60802.0,60801.0,0.46522949]
[1727913172021,0.04225691,60802.0,60801.0,0.62969949]
[1727913172252,0.04225691,60802.0,60801.0,0.44109949]
[1727913172499,0.04225691,60802.0,60801.0,0.27662949]
[1727913173730,0.04225691,60802.0,60801.0,0.44109949]
[1727913174202,0.01647023,60802.0,60801.0,0.44109949]
[1727913177514,0.04225723,60802.0,60801.0,0.44109949]
[1727913180661,0.18093823,60802.0,60801.0,0.27662949]
[1727913180919,0.18093823,60802.0,60801.0,0.167407]
[1727913181165,0.23008494,60802.0,60801.0,0.167407]
[1727913181407,0.23009013,60802.0,60801.0,0.167407]
[1727913183140,0.23009013,60802.0,60801.0,0.068807]
[1727913183387,0.18093823,60802.0,60801.0,0.0836477]
[1727913183630,0.18093823,60802.0,60801.0,0.067048]
[1727913183631,0.2804463,60802.0,60801.0,0.067048]
[1727913183884,0.28046699,60802.0,60801.0,0.067048]
[1727913184129,0.30504724,60802.0,60801.0,0.065198]
[1727913184926,0.27925924,60802.0,60801.0,0.065198]
[1727913185659,0.18093823,60802.0,60801.0,0.065198]
[1727913186146,0.27926709,60802.0,60801.0,0.065198]
[1727913186847,0.27926709,60802.0,60801.0,0.035817]
[1727913187082,0.18093823,60802.0,60801.0,0.035817]
[1727913187343,0.3038742,60802.0,60801.0,0.035817]
[1727913187580,0.30387429,60802.0,60801.0,0.035817]
[1727913187836,0.30187429,60802.0,60801.0,0.000817]
[1727913188086,0.17993823,60802.0,60801.0,0.008817]
[1727913188626,0.27828987,60802.0,60801.0,0.008817]
[1727913188869,0.01283894,60802.0,60801.0,0.603924]
[1727913189125,0.01283894,60802.0,60801.0,0.8293346]
[1727913189397,0.24623062,60811.0,60803.0,0.10949]
[1727913189647,0.24623062,60811.0,60805.0,0.023]
[1727913189907,0.0622415,60810.0,60805.0,0.187458]
[1727913190162,0.0622415,60810.0,60806.0,0.0944336]
[1727913190632,0.0622415,60810.0,60807.0,0.164453]
[1727913191381,0.08802607,60810.0,60807.0,0.164453]
[1727913191619,0.03884679,60810.0,60807.0,0.164453]
[1727913191861,0.08802607,60810.0,60806.0,0.0944336]
[1727913192115,0.08802607,60810.0,60808.0,0.164451]
[1727913192365,0.03984679,60810.0,60807.0,0.09570742]
[1727913192583,0.04917928,60809.0,60808.0,0.164452]
[1727913192866,0.04917928,60809.0,60807.0,0.26016042]
[1727913193103,0.01305093,60809.0,60807.0,0.25316042]
[1727913193336,0.06223021,60809.0,60808.0,0.0809005]
[1727913193811,0.01305093,60809.0,60808.0,0.2453525]
[1727913194083,0.06223425,60809.0,60808.0,0.2453525]
[1727913194336,0.06224489,60809.0,60808.0,0.2453525]
[1727913194572,0.06224438,60809.0,60808.0,0.2523525]
[1727913194826,0.06387654,60809.0,60808.0,0.2453525]
[1727913195068,0.01568493,60809.0,60808.0,0.2533525]
[1727913195597,0.05182561,60809.0,60808.0,0.2533525]
[1727913195833,0.002634,60809.0,60808.0,0.2533525]
[1727913196085,0.002634,60809.0,60808.0,0.3570525]
[1727913196342,0.002634,60809.0,60808.0,0.5826425]
[1727913197582,0.001634,60809.0,60808.0,0.5746425]
[1727913197829,0.001634,60809.0,60808.0,0.5806425]
[1727913198066,0.001634,60809.0,60808.0,0.5946425]
[1727913198546,0.001634,60809.0,60808.0,0.5806425]
[1727913198780,0.001634,60809.0,60808.0,0.5946425]
[1727913199749,0.02741694,60809.0,60808.0,0.5946425]
[1727913201199,0.02741694,60809.0,60808.0,0.2225905]
[1727913201458,0.02741694,60809.0,60808.0,0.1418905]
[1727913201693,0.04054767,60809.0,60808.0,0.1418905]
[1727913201938,0.25416487,60809.0,60808.0,0.1418905]
[1727913202172,0.25416487,60809.0,60808.0,0.06099]
[1727913202907,0.08971587,60809.0,60808.0,0.06099]
[1727913203839,0.06393293,60809.0,60808.0,0.06099]
[1727913204094,0.22838193,60809.0,60808.0,0.06099]
[1727913204340,0.22838193,60809.0,60808.0,0.1242576]
[1727913204833,0.17921373,60809.0,60808.0,0.1242576]
[1727913205070,0.22833813,60809.0,60808.0,0.1242576]
[1727913205804,0.17921373,60809.0,60808.0,0.1242576]
[1727913206269,0.22834049,60809.0,60808.0,0.1242576]
[1727913206503,0.17921373,60809.0,60808.0,0.1242576]
[1727913206737,0.01476473,60809.0,60808.0,0.1242576]
[1727913206975,0.04054983,60809.0,60808.0,0.1242576]
[1727913207222,0.08967444,60809.0,60808.0,0.1242576]
[1727913207757,0.04054983,60809.0,60808.0,0.1242576]
[1727913208210,0.08967599,60809.0,60808.0,0.1242576]
[1727913208675,0.04054983,60809.0,60808.0,0.1242576]
[1727913210349,0.08967915,60809.0,60808.0,0.1242576]
[1727913210827,0.04054983,60809.0,60808.0,0.1242576]
[1727913211321,0.0896785,60809.0,60808.0,0.1242576]
[1727913211812,0.04054983,60809.0,60808.0,0.1242576]
[1727913212285,0.08967849,60809.0,60808.0,0.1242576]
[1727913212769,0.04054983,60809.0,60808.0,0.1242576]
[1727913213963,0.08968544,60809.0,60808.0,0.1242576]
[1727913214208,0.06390034,60809.0,60808.0,0.1242576]
[1727913215915,0.06392049,60809.0,60808.0,0.1242576]
[1727913217339,0.06392049,60809.0,60808.0,0.2887096]
[1727913217537,0.06392049,60809.0,60808.0,0.1242576]
[1727913217538,0.08970558,60809.0,60808.0,0.1242576]
[1727913217937,0.04054982,60809.0,60808.0,0.1242576]
[1727913218160,0.04054982,60809.0,60808.0,0.5919096]
[1727913218611,0.01476473,60809.0,60808.0,0.5919096]
[1727913218838,0.001634,60809.0,60808.0,0.5919096]
[1727913219722,0.001634,60809.0,60808.0,0.77924805]
[1727913220630,0.001634,60809.0,60808.0,0.5919096]
[1727913220900,0.166083,60809.0,60808.0,0.1242576]
[1727913221137,0.21523888,60809.0,60808.0,0.06099]
[1727913221360,0.17917901,60809.0,60808.0,0.06099]
[1727913221602,0.20496478,60809.0,60808.0,0.028]
[1727913222487,0.20496478,60809.0,60808.0,0.014]
[1727913222716,0.164454,60807.0,60806.0,0.000817]
[1727913223074,0.26274666,60807.0,60806.0,0.000817]
[1727913223169,0.27620032,60807.0,60806.0,0.000817]
[1727913223907,0.17790766,60807.0,60806.0,0.000817]
[1727913224147,0.27620172,60807.0,60806.0,0.000817]
[1727913224391,0.17790766,60807.0,60806.0,0.000817]
[1727913224629,0.17790766,60807.0,60806.0,0.02890246]
[1727913225144,0.30077298,60807.0,60806.0,0.02890246]
[1727913225375,0.17790766,60807.0,60806.0,0.03590246]
[1727913225861,0.17790766,60807.0,60806.0,0.04490246]
[1727913226108,0.30077298,60807.0,60806.0,0.04490246]
[1727913226601,0.17790766,60807.0,60806.0,0.04490246]
[1727913227098,0.25163503,60807.0,60806.0,0.04490246]
[1727913227572,0.2774217,60807.0,60806.0,0.04490246]
[1727913227809,0.1129677,60807.0,60806.0,0.04490246]
[1727913228288,0.11296961,60807.0,60806.0,0.04490246]
[1727913228556,0.11296963,60807.0,60806.0,0.04490246]
[1727913228798,0.08718298,60807.0,60806.0,0.04490246]
[1727913229045,0.08718165,60807.0,60806.0,0.04490246]
[1727913229286,0.01345366,60807.0,60806.0,0.04490246]
[1727913229517,0.08718098,60807.0,60806.0,0.04490246]
[1727913229748,0.08718396,60807.0,60806.0,0.04490246]
[1727913230448,0.08881796,60807.0,60806.0,0.04490246]
[1727913230745,0.01508766,60807.0,60806.0,0.04490246]
[1727913230991,0.08882173,60807.0,60806.0,0.28615946]
[1727913231228,0.064246,60807.0,60806.0,0.53558975]
[1727913231471,0.01508766,60807.0,60806.0,0.53414946]
[1727913231706,0.04087213,60807.0,60806.0,0.53414946]
[1727913231941,0.02741847,60807.0,60806.0,0.53414946]
[1727913232174,0.02741847,60807.0,60806.0,0.51814946]
[1727913232433,0.02741847,60807.0,60806.0,0.54614946]
[1727913232669,0.02741847,60807.0,60806.0,0.53214946]
[1727913233157,0.02741847,60807.0,60806.0,0.54614946]
[1727913234108,0.001634,60807.0,60806.0,0.54614946]
[1727913236522,0.001634,60807.0,60806.0,0.55314946]
[1727913236995,0.001634,60807.0,60806.0,0.55114946]
[1727913237467,0.02741654,60807.0,60806.0,0.55114946]
[1727913238470,0.001634,60807.0,60806.0,0.55114946]
[1727913238936,0.001634,60807.0,60806.0,0.55314946]
[1727913241565,0.02741653,60807.0,60806.0,0.55314946]
[1727913242320,0.02741653,60807.0,60806.0,0.55114946]
[1727913244274,0.001634,60807.0,60806.0,0.55114946]
[1727913246169,0.001634,60807.0,60806.0,0.55314946]
[1727913246173,0.001634,60807.0,60806.0,0.55114946]
[1727913246457,0.001634,60807.0,60806.0,0.35414946]
[1727913246927,0.01518506,60807.0,60806.0,0.35414946]
[1727913247166,0.166088,60807.0,60806.0,0.08989246]
[1727913247420,0.20544192,60807.0,60806.0,0.08989246]
[1727913247654,0.27921125,60807.0,60806.0,0.08989246]
[1727913247884,0.27919935,60807.0,60806.0,0.061807]
[1727913248131,0.20544192,60807.0,60806.0,0.061807]
[1727913248893,0.20544192,60807.0,60806.0,0.027818]
[1727913249413,0.27919224,60807.0,60806.0,0.027818]
[1727913249643,0.27919224,60807.0,60806.0,0.05530456]
[1727913251072,0.27919224,60807.0,60806.0,0.05454156]
[1727913254645,0.25340658,60807.0,60806.0,0.05454156]
[1727913255233,0.08895258,60807.0,60806.0,0.05454156]
[1727913255480,0.01520226,60807.0,60806.0,0.05454156]
[1727913255894,0.01520226,60807.0,60806.0,0.07835856]
[1727913256108,0.01520226,60807.0,60806.0,0.19354856]
[1727913257174,0.01520226,60807.0,60806.0,0.15955432]
[1727913257391,0.01520226,60807.0,60806.0,0.07735432]
[1727913257392,0.17965626,60807.0,60806.0,0.07735432]
[1727913257603,0.2288062,60807.0,60806.0,0.04986776]
[1727913257807,0.25459124,60807.0,60806.0,0.04986776]
[1727913258025,0.2054413,60807.0,60806.0,0.04986776]
[1727913258677,0.2054413,60807.0,60806.0,0.06257624]
[1727913258909,0.17965626,60807.0,60806.0,0.06257624]
[1727913260009,0.17965626,60807.0,60806.0,0.03957624]
[1727913261123,0.01520226,60807.0,60806.0,0.03957624]
[1727913261600,0.06434891,60807.0,60806.0,0.03957624]
[1727913261884,0.22880291,60807.0,60806.0,0.03957624]
[1727913262615,0.17965626,60807.0,60806.0,0.03957624]
[1727913263322,0.25458751,60807.0,60806.0,0.03957624]
[1727913263559,0.20544086,60807.0,60806.0,0.03957624]
[1727913264256,0.22880291,60807.0,60806.0,0.03957624]
[1727913264747,0.17965626,60807.0,60806.0,0.03957624]
[1727913265725,0.17965626,60807.0,60806.0,0.02557624]
[1727913265969,0.17965626,60807.0,60806.0,0.03757624]
[1727913266203,0.25337605,60807.0,60806.0,0.012817]
[1727913266673,0.25337605,60807.0,60806.0,0.022817]
[1727913267363,0.2791612,60807.0,60806.0,0.022817]
[1727913274976,0.27912944,60807.0,60806.0,0.022817]
[1727913276191,0.27912944,60807.0,60806.0,0.105417]
[1727913276670,0.25334429,60807.0,60806.0,0.105417]
[1727913276925,0.25334429,60807.0,60806.0,0.1359404]
[1727913279455,0.17965626,60807.0,60806.0,0.1359404]
[1727913280271,0.25332348,60807.0,60806.0,0.1359404]
[1727913282747,0.08886948,60807.0,60806.0,0.1919304]
[1727913283007,0.01520226,60807.0,60806.0,0.1919304]
[1727913283476,0.01520226,60807.0,60806.0,0.1819304]
[1727913283714,0.01520226,60807.0,60806.0,0.1799304]
[1727913283968,0.01520226,60807.0,60806.0,0.1819304]
[1727913284210,0.01520226,60807.0,60806.0,0.1959304]
[1727913284476,0.01520226,60807.0,60806.0,0.1839304]
[1727913284947,0.01520226,60807.0,60806.0,0.1979304]
[1727913289212,0.01520226,60807.0,60806.0,0.1957964]
[1727913290177,0.01520226,60807.0,60806.0,0.1966134]
[1727913295886,0.01599034,60810.0,60806.0,0.1966134]
[1727913296120,0.01599034,60811.0,60807.0,0.0674844]
[1727913296578,0.04177359,60811.0,60807.0,0.0674844]
[1727913297098,0.164447,60810.0,60807.0,0.0674844]
[1727913297363,0.164447,60810.0,60808.0,0.02130978]
[1727913297364,0.164449,60809.0,60808.0,0.02130978]
[1727913297609,0.23818012,60809.0,60808.0,0.02130978]
[1727913297883,0.164452,60808.0,60807.0,0.013]
[1727913298112,0.164452,60808.0,60807.0,0.027]
[1727913298113,0.28730617,60808.0,60807.0,0.027]
[1727913298357,0.1094967,60808.0,60807.0,0.027]
[1727913298603,0.2739487,60808.0,60807.0,0.0373217]
[1727913299083,0.2739487,60808.0,60807.0,0.0243217]
[1727913299846,0.2739487,60808.0,60807.0,0.0103217]
[1727913300075,0.2739487,60808.0,60807.0,0.0243217]
[1727913300795,0.2739487,60808.0,60807.0,0.0383217]
[1727913301809,0.2755827,60808.0,60807.0,0.0383217]
[1727913306095,0.17730054,60808.0,60807.0,0.0383217]
[1727913308257,0.30015471,60808.0,60807.0,0.0383217]
[1727913311131,0.30015248,60808.0,60807.0,0.0383217]
[1727913311619,0.30015248,60808.0,60807.0,0.026059]
[1727913311620,0.55110054,60808.0,60807.0,0.026059]
[1727913311858,0.59908044,60808.0,60807.0,0.026059]
[1727913312589,0.59908044,60808.0,60806.0,0.000817]
[1727913312590,0.1,60807.0,60806.0,0.000817]
[1727913312826,0.32406293,60807.0,60806.0,0.000817]
[1727913313536,0.34985148,60807.0,60806.0,0.000817]
[1727913314001,0.34985148,60807.0,60806.0,0.001817]
[1727913314484,0.34985148,60807.0,60806.0,0.005817]
[1727913314716,0.32406293,60807.0,60806.0,0.005817]
[1727913316663,0.47136483,60807.0,60806.0,0.005817]
[1727913317862,0.32406293,60807.0,60806.0,0.005817]
[1727913318097,0.32406293,60807.0,60806.0,0.001817]
[1727913319293,0.54325281,60807.0,60806.0,0.000817]
[1727913319529,1.44314898,60807.0,60806.0,0.000817]
[1727913319759,1.28152581,60807.0,60806.0,0.000817]
[1727913319998,1.27652581,60807.0,60806.0,0.000817]
[1727913320272,0.95342381,60807.0,60806.0,0.002817]
[1727913320513,0.54325281,60807.0,60806.0,0.002817]
[1727913320753,0.54325281,60807.0,60806.0,0.000817]
[1727913320997,0.69551149,60807.0,60806.0,0.000817]
[1727913321478,0.54825281,60807.0,60806.0,0.000817]
[1727913324127,0.52246293,60807.0,60806.0,0.000817]
[1727913327147,0.66970325,60807.0,60806.0,0.000817]
[1727913327649,0.54825318,60807.0,60806.0,0.000817]
[1727913328144,0.35485318,60807.0,60806.0,0.000817]
[1727913328387,0.30687328,60807.0,60806.0,0.000817]
[1727913328632,0.37924743,60807.0,60806.0,0.000817]
[1727913328870,0.28108303,60807.0,60806.0,0.000817]
[1727913329110,0.27708303,60807.0,60806.0,0.000817]
[1727913329356,0.3752459,60807.0,60806.0,0.000817]
[1727913329850,0.3752459,60807.0,60806.0,0.002817]
[1727913330605,0.39978939,60807.0,60806.0,0.002817]
[1727913331569,0.42557818,60807.0,60806.0,0.002817]
[1727913334171,0.39978939,60807.0,60806.0,0.002817]
[1727913334415,0.27708303,60807.0,60806.0,0.002817]
[1727913335163,0.39978939,60807.0,60806.0,0.002817]
[1727913336620,0.27708303,60807.0,60806.0,0.002817]
[1727913337324,0.3028715,60807.0,60806.0,0.002817]
[1727913337560,0.35085693,60807.0,60806.0,0.002817]
[1727913339043,0.42561208,60807.0,60806.0,0.002817]
[1727913339291,0.0009895,60806.0,60801.0,0.00075024]
[1727913339520,0.164465,60803.0,60802.0,0.03360939]
[1727913339753,0.66704914,60803.0,60802.0,0.03360939]
[1727913339980,0.67883841,60803.0,60802.0,0.03360939]
[1727913341649,0.67883841,60803.0,60802.0,0.03660939]
[1727913342142,0.67883841,60803.0,60802.0,0.42170966]
[1727913342143,0.01178927,60803.0,60802.0,0.42170966]
[1727913342429,0.0009895,60806.0,60805.0,0.22545]
[1727913342669,0.001634,60812.0,60807.0,0.220444]
[1727913342927,0.001634,60812.0,60807.0,0.32389]
[1727913343416,0.00940105,60808.0,60807.0,0.32389]
[1727913343649,0.001634,60808.0,60807.0,0.32389]
[1727913343886,0.001634,60808.0,60807.0,0.32589]
[1727913344120,0.001634,60808.0,60807.0,0.39910564]
[1727913344356,0.02741593,60808.0,60807.0,0.39910564]
[1727913344842,0.02741593,60808.0,60807.0,0.41310564]
[1727913345352,0.02741593,60808.0,60807.0,0.42710564]
[1727913345887,0.02741593,60808.0,60807.0,0.41310564]
[1727913346128,0.02741593,60808.0,60807.0,0.41110564]
[1727913346377,0.001634,60808.0,60807.0,0.42510564]